bitfinex-derivatives/quotes_SOLF0:USTF0_20240905
["timestamp","ask_amount","ask_price","bid_price","bid_amount"]
[1725542428636,25.6757,133.48,133.41,23.03]
[1725542429033,25.6757,133.48,133.43,3.7474]
[1725542429238,0.05758744,133.46,133.43,0.05492683]
[1725542429943,3.7469,133.45,133.43,0.05492683]
[1725542433344,0.05758744,133.46,133.43,0.05492683]
[1725542433743,3.80418744,133.46,133.43,0.05492683]
[1725542434247,3.7471,133.44,133.43,0.05492683]
[1725542434747,23.03,133.44,133.37,23.03]
[1725542435046,3.7478,133.42,133.37,23.03]
[1725542435245,23.03,133.44,133.35,27.0042]
[1725542435443,3.7481,133.41,133.35,27.0042]
[1725542435844,0.05329069,133.39,133.37,0.05477764]
[1725542436149,0.05329069,133.39,133.38,3.7488]
[1725542438150,0.05329069,133.39,133.38,7.57079283]
[1725542438453,0.05329069,133.39,133.38,3.7488]
[1725542439254,0.05329069,133.39,133.37,3.80377764]
[1725542439455,0.05329069,133.39,133.37,0.05477764]
[1725542440457,0.05329069,133.39,133.38,3.7488]
[1725542440850,0.05329069,133.39,133.38,7.49964366]
[1725542441152,3.747,133.45,133.42,3.7477]
[1725542441350,23.03,133.47,133.39,23.03]
[1725542441553,3.7472,133.44,133.41,3.7478]
[1725542442144,3.79788068,133.44,133.41,3.80197392]
[1725542442546,0.05068068,133.44,133.42,3.7477]
[1725542443654,0.05068068,133.44,133.41,23.08417392]
[1725542444153,0.05068068,133.44,133.41,0.05417392]
[1725542445654,3.79798068,133.44,133.41,3.80197392]
[1725542445854,3.79798068,133.44,133.41,0.05417392]
[1725542446259,0.05068068,133.44,133.42,3.7477]
[1725542446458,0.05068068,133.44,133.41,23.08417392]
[1725542447148,0.05068068,133.44,133.42,3.7475]
[1725542447855,3.79778068,133.44,133.41,3.80197392]
[1725542449856,3.7477,133.42,133.41,0.05417392]
[1725542450052,0.05068068,133.44,133.41,0.05417392]
[1725542451456,3.79798068,133.44,133.41,3.80197392]
[1725542452050,0.05068068,133.44,133.41,0.05417392]
[1725542452856,0.05068068,133.44,133.42,3.7475]
[1725542453161,0.05068068,133.44,133.41,0.05417392]
[1725542453661,0.05068068,133.44,133.43,3.7474]
[1725542454558,0.05068068,133.44,133.41,0.05417392]
[1725542455460,3.7476,133.43,133.41,0.05417392]
[1725542460662,3.7477,133.42,133.41,0.05417392]
[1725542460861,7.49816873,133.42,133.41,0.05417392]
[1725542461061,26.78046873,133.42,133.35,1.3516]
[1725542461257,3.7486,133.39,133.35,5.101]
[1725542461458,3.7486,133.39,133.35,1.3516]
[1725542462064,0.05477156,133.38,133.36,0.05277665]
[1725542462360,3.7491,133.37,133.36,0.05277665]
[1725542462566,0.05477156,133.38,133.36,0.05277665]
[1725542462963,3.80377156,133.38,133.36,0.05277665]
[1725542463866,0.05477156,133.38,133.36,0.05277665]
[1725542465264,3.80367156,133.38,133.36,0.05277665]
[1725542465671,0.05477156,133.38,133.36,0.05277665]
[1725542466570,3.80377156,133.38,133.36,0.05277665]
[1725542467374,3.80377156,133.38,133.36,3.80217665]
[1725542467375,0.05477156,133.38,133.36,3.80217665]
[1725542468370,3.80367156,133.38,133.36,0.05277665]
[1725542470167,3.80367156,133.38,133.36,3.80217665]
[1725542470572,0.05477156,133.38,133.36,3.80217665]
[1725542470773,0.05477156,133.38,133.37,3.7491]
[1725542470978,0.05477156,133.38,133.36,0.05277665]
[1725542471477,0.05477156,133.38,133.36,3.80207665]
[1725542472377,3.80377156,133.38,133.36,0.05277665]
[1725542474777,23.03,133.37,133.19,11.2621]
[1725542475074,23.03,133.32,133.25,23.03]
[1725542475379,23.03,133.34,133.25,26.83910066]
[1725542475585,26.7753092,133.34,133.25,26.83910066]
[1725542475777,3.7513,133.3,133.28,0.05681967]
[1725542476182,0.04976756,133.31,133.28,0.05681967]
[1725542477186,3.7514,133.29,133.28,0.05681967]
[1725542477376,3.7514,133.29,133.25,7.56140066]
[1725542477581,2.6534,133.31,133.25,7.56140066]
[1725542477785,2.6534,133.31,133.25,3.80910066]
[1725542477981,2.6534,133.31,133.23,23.03]
[1725542478189,2.6534,133.31,133.26,3.752]
[1725542478385,0.05586446,133.3,133.27,0.05627345]
[1725542478581,3.7516,133.29,133.27,0.05627345]
[1725542478783,0.05586446,133.3,133.27,0.05627345]
[1725542479377,0.05586446,133.3,133.29,3.7514]
[1725542479787,0.05586446,133.3,133.27,23.08627345]
[1725542479990,0.05586446,133.3,133.27,26.83807345]
[1725542480186,0.05586446,133.3,133.27,23.08627345]
[1725542480986,0.05586446,133.3,133.27,26.83797345]
[1725542481483,0.05586446,133.3,133.28,3.7516]
[1725542482484,3.80696446,133.3,133.27,3.80807345]
[1725542482883,0.05586446,133.3,133.27,0.05627345]
[1725542483084,3.7514,133.29,133.27,0.05627345]
[1725542484087,3.80696446,133.3,133.27,3.80817345]
[1725542484287,0.05586446,133.3,133.27,0.05627345]
[1725542484686,0.05586446,133.3,133.29,3.7514]
[1725542485085,0.05586446,133.3,133.27,0.05627345]
[1725542485486,3.80716446,133.3,133.27,3.80797345]
[1725542485886,3.7514,133.29,133.27,0.05627345]
[1725542486289,0.05586446,133.3,133.27,0.05627345]
[1725542486486,3.80706446,133.3,133.27,3.80797345]
[1725542486886,0.05586446,133.3,133.27,0.05627345]
[1725542487288,0.05586446,133.3,133.28,23.03]
[1725542487490,23.03,133.36,133.28,23.03]
[1725542487491,3.7494,133.36,133.28,23.03]
[1725542487789,3.7494,133.36,133.31,23.03]
[1725542487981,23.03,133.4,133.31,23.03]
[1725542488184,3.7489,133.38,133.34,3.7497]
[1725542488385,0.05277179,133.37,133.35,0.0520287]
[1725542488587,0.05277179,133.37,133.35,23.0820287]
[1725542488988,0.05277179,133.37,133.35,25.8866287]
[1725542489187,0.05277179,133.37,133.36,3.7494]
[1725542497001,0.05277179,133.37,133.36,26.7794]
[1725542497398,3.7479,133.42,133.39,3.7484]
[1725542497696,4.0653,133.46,133.39,23.03]
[1725542497997,3.7474,133.44,133.41,3.7479]
[1725542498203,3.7474,133.44,133.39,23.03]
[1725542498502,0.05056763,133.43,133.4,0.04813504]
[1725542498699,0.05056763,133.43,133.4,3.79623504]
[1725542499004,3.79806763,133.43,133.4,3.79623504]
[1725542499203,0.05056763,133.43,133.4,0.04813504]
[1725542499399,3.748,133.41,133.4,0.04813504]
[1725542502102,0.05056763,133.43,133.4,0.04813504]
[1725542502296,0.05056763,133.43,133.41,23.03]
[1725542502499,0.05056763,133.43,133.42,3.7477]
[1725542502799,0.05056763,133.43,133.41,26.6940334]
[1725542503197,0.05056763,133.43,133.42,3.7477]
[1725542503804,0.05056763,133.43,133.41,26.7778]
[1725542504006,0.05056763,133.43,133.41,23.03]
[1725542504804,0.05056763,133.43,133.42,3.7477]
[1725542507899,0.05056763,133.43,133.42,26.7777]
[1725542508099,1.3458,133.49,133.42,26.7777]
[1725542508100,1.3458,133.49,133.43,3.7472]
[1725542508505,3.7465,133.47,133.42,23.03]
[1725542508707,3.7465,133.47,133.44,3.7471]
[1725542508914,2.7047,133.51,133.44,23.03]
[1725542509209,0.05530466,133.49,133.46,0.05613771]
[1725542509907,3.746,133.48,133.46,0.05613771]
[1725542510801,3.7463,133.47,133.46,0.05613771]
[1725542512603,3.7473,133.44,133.42,23.03]
[1725542513507,3.7959754,133.44,133.42,23.07904038]
[1725542513712,0.0486754,133.44,133.42,0.04904038]
[1725542514306,3.7474,133.43,133.42,0.04904038]
[1725542515202,3.7483,133.41,133.36,23.03]
[1725542515402,28.16401773,133.45,133.36,23.03]
[1725542515608,3.7481,133.41,133.38,3.7487]
[1725542516111,3.79644757,133.41,133.38,3.80065497]
[1725542516307,0.04834757,133.41,133.38,0.05195497]
[1725542516807,3.79654757,133.41,133.38,0.05195497]
[1725542517509,3.7483,133.4,133.38,0.05195497]
[1725542518110,3.79644757,133.41,133.38,3.80075497]
[1725542520215,0.04834757,133.41,133.39,3.7485]
[1725542521307,0.04834757,133.41,133.4,3.7483]
[1725542521712,0.04834757,133.41,133.4,26.7783]
[1725542522715,5.0843,133.46,133.43,3.7474]
[1725542523119,3.7469,133.45,133.42,23.03]
[1725542523316,3.7469,133.45,133.42,26.7776]
[1725542523812,3.7473,133.44,133.42,0.04965491]
[1725542524510,3.80333351,133.45,133.42,0.04965491]
[1725542524711,3.80333351,133.45,133.42,3.79715491]
[1725542527319,3.7472,133.44,133.42,3.79715491]
[1725542529920,3.80333351,133.45,133.42,3.79715491]
[1725542530620,0.05633351,133.45,133.42,23.07965491]
[1725542531217,0.05633351,133.45,133.43,3.7473]
[1725542534121,3.80323351,133.45,133.43,3.7473]
[1725542538021,0.05633351,133.45,133.44,3.7471]
[1725542538224,1.2755,133.51,133.44,23.03]
[1725542538524,3.7451,133.52,133.47,23.03]
[1725542538828,3.7451,133.52,133.42,3.9917]
[1725542538829,3.7451,133.52,133.49,23.03]
[1725542539016,3.7451,133.52,133.47,23.03]
[1725542539219,0.05665738,133.51,133.48,0.04800297]
[1725542539619,3.7457,133.5,133.48,0.04800297]
[1725542539826,0.05665738,133.51,133.48,0.04800297]
[1725542540026,3.80103657,133.51,133.48,0.04800297]
[1725542540226,0.05665738,133.51,133.43,26.7774]
[1725542540530,25.7871,133.5,133.43,3.7474]
[1725542540720,3.7466,133.47,133.43,3.7474]
[1725542541225,29.57682245,133.5,133.43,3.7474]
[1725542541226,3.7461,133.48,133.44,3.747]
[1725542541525,0.05490946,133.46,133.44,3.79654868]
[1725542543229,3.80150946,133.46,133.44,0.04954868]
[1725542543921,3.80150946,133.46,133.44,3.79664868]
[1725542544835,0.05490946,133.46,133.44,3.79664868]
[1725542545533,0.05490946,133.46,133.45,3.7469]
[1725542546126,0.05490946,133.46,133.45,26.7769]
[1725542548434,25.6403,133.54,133.45,26.7769]
[1725542548435,2.6103,133.54,133.48,3.746]
[1725542548732,2.6103,133.54,133.48,23.03]
[1725542548733,3.65752192,133.53,133.48,23.03]
[1725542548938,3.65752192,133.53,133.48,26.7758]
[1725542549434,3.7453,133.51,133.48,26.7758]
[1725542549636,3.7453,133.51,133.49,0.04916201]
[1725542550639,0.05575179,133.52,133.49,0.04916201]
[1725542551036,3.7455,133.5,133.49,0.04916201]
[1725542551741,3.7464,133.47,133.43,23.03]
[1725542552541,3.7464,133.47,133.44,3.747]
[1725542552734,0.05645833,133.46,133.44,3.80158256]
[1725542553833,0.05645833,133.46,133.45,3.7469]
[1725542557348,3.7452,133.51,133.44,23.08458256]
[1725542557548,3.7452,133.51,133.48,23.03]
[1725542557950,3.7451,133.52,133.48,23.03]
[1725542558152,6.36610951,133.54,133.49,3.80228395]
[1725542558449,0.05380563,133.53,133.5,0.0555611]
[1725542559248,0.05380563,133.53,133.5,3.87881166]
[1725542559444,0.05380563,133.53,133.5,7.62411166]
[1725542560254,0.05380563,133.53,133.52,23.03]
[1725542561445,0.05380563,133.53,133.52,26.7749]
[1725542564053,0.05380563,133.53,133.52,23.03]
[1725542564253,0.05380563,133.53,133.51,3.7451]
[1725542567757,3.79840563,133.53,133.5,30.65421166]
[1725542568158,0.05380563,133.53,133.52,23.03]
[1725542568360,0.05380563,133.53,133.52,26.7749]
[1725542569657,4.1516,133.6,133.53,3.7443]
[1725542569658,3.7436,133.57,133.53,3.7443]
[1725542569853,3.7436,133.57,133.54,23.03]
[1725542570157,3.7438,133.56,133.54,23.03]
[1725542570756,3.7441,133.55,133.54,0.04839897]
[1725542571058,0.04791381,133.56,133.54,0.04839897]
[1725542571258,0.04791381,133.56,133.55,3.7441]
[1725542571459,0.04791381,133.56,133.55,26.7741]
[1725542572067,0.04791381,133.56,133.54,0.04839897]
[1725542572358,3.79181381,133.56,133.54,0.04839897]
[1725542572560,0.04791381,133.56,133.54,0.04839897]
[1725542572759,0.04791381,133.56,133.55,23.03]
[1725542573456,0.04791381,133.56,133.55,26.7741]
[1725542574552,23.03,133.65,133.55,23.03]
[1725542574756,23.03,133.65,133.57,23.03]
[1725542575653,23.03,133.65,133.6,0.04989574]
[1725542575654,0.05647473,133.62,133.6,0.04989574]
[1725542576662,3.7425,133.61,133.6,0.04989574]
[1725542581367,23.08647473,133.62,133.54,23.03]
[1725542581570,2.7207,133.6,133.54,26.8659293]
[1725542581867,3.7434,133.58,133.55,3.7439]
[1725542582258,3.7950193,133.58,133.55,3.7954328]
[1725542583064,3.7438,133.56,133.55,0.0515328]
[1725542583269,0.0516193,133.58,133.55,0.0515328]
[1725542583568,3.7436,133.57,133.55,0.0515328]
[1725542585771,3.7438,133.56,133.55,0.0515328]
[1725542592069,0.0516193,133.58,133.55,9.2615328]
[1725542592270,0.0516193,133.58,133.57,9.21]
[1725542593171,3.7948193,133.58,133.57,9.21]
[1725542593368,0.0516193,133.58,133.57,9.21]
[1725542594574,0.0516193,133.58,133.57,12.9535]
[1725542594975,2.6392,133.66,133.57,9.21]
[1725542595175,13.2104,133.66,133.61,9.21]
[1725542595574,4.0004,133.66,133.61,9.21]
[1725542595769,4.0004,133.66,133.63,9.21]
[1725542596078,4.0004,133.66,133.63,0.05458597]
[1725542596079,0.0558717,133.66,133.63,0.05458597]
[1725542596276,0.0558717,133.66,133.63,3.79618597]
[1725542596575,0.0558717,133.66,133.63,0.05458597]
[1725542596769,0.0558717,133.66,133.64,3.7414]
[1725542597477,3.7968717,133.66,133.63,3.79638597]
[1725542597872,0.0558717,133.66,133.63,0.05458597]
[1725542598176,3.7413,133.65,133.63,0.05458597]
[1725542599278,3.7415,133.64,133.63,0.05458597]
[1725542602182,7.55316254,133.64,133.63,0.05458597]
[1725542602375,3.7415,133.64,133.63,0.05458597]
[1725542602580,7.42253899,133.64,133.63,0.05458597]
[1725542604681,3.68103899,133.64,133.57,22.99]
[1725542604886,22.99,133.65,133.56,26.68890702]
[1725542605087,26.81205419,133.65,133.56,26.68890702]
[1725542605493,26.81205419,133.65,133.57,22.99]
[1725542605790,0.04773931,133.62,133.6,0.05341084]
[1725542606786,3.7425,133.61,133.6,0.05341084]
[1725542608391,3.78983931,133.62,133.6,0.05341084]
[1725542608687,0.04773931,133.62,133.6,0.05341084]
[1725542608885,3.78993931,133.62,133.6,0.05341084]
[1725542610988,3.7424,133.61,133.6,0.05341084]
[1725542616191,3.78993931,133.62,133.6,0.05341084]
[1725542617488,0.04773931,133.62,133.6,0.05341084]
[1725542618187,0.04773931,133.62,133.6,3.79591084]
[1725542618893,3.79003931,133.62,133.6,0.05341084]
[1725542619793,3.7424,133.61,133.6,0.05341084]
[1725542626391,0.04773931,133.62,133.6,0.05341084]
[1725542626598,0.04773931,133.62,133.61,22.99]
[1725542626790,3.78983931,133.62,133.6,23.04341084]
[1725542628393,0.04773931,133.62,133.6,26.78601084]
[1725542629000,3.78993931,133.62,133.6,23.04341084]
[1725542629700,0.04773931,133.62,133.6,26.78601084]
[1725542630099,0.04773931,133.62,133.6,23.04341084]
[1725542630602,0.04773931,133.62,133.61,3.7424]
[1725542631997,0.04773931,133.62,133.61,12.9424]
[1725542633801,3.74288709,133.66,133.63,3.7417]
[1725542634001,7.48398709,133.66,133.64,9.2]
[1725542634204,3.7411,133.66,133.64,9.2]
[1725542634500,10.5792,133.72,133.65,9.2]
[1725542634694,9.2,133.72,133.68,9.2]
[1725542634899,0.05497447,133.7,133.68,9.2]
[1725542635809,0.05497447,133.7,133.69,9.2]
[1725542637005,3.79487447,133.7,133.69,9.2]
[1725542637601,3.79487447,133.7,133.68,9.2]
[1725542638001,3.79487447,133.7,133.67,30.52043054]
[1725542638608,3.7402,133.69,133.67,26.77993054]
[1725542638804,3.7402,133.69,133.67,0.05332645]
[1725542639705,3.7404,133.68,133.67,0.05332645]
[1725542639910,0.05497447,133.7,133.67,0.05332645]
[1725542640306,3.7403,133.69,133.67,0.05332645]
[1725542642619,3.79487447,133.7,133.67,3.79402645]
[1725542642915,0.05497447,133.7,133.68,23.0]
[1725542643109,0.05497447,133.7,133.69,3.7401]
[1725542644120,0.05497447,133.7,133.68,3.7403]
[1725542644915,3.79487447,133.7,133.67,30.52512344]
[1725542645515,0.05497447,133.7,133.68,26.7404]
[1725542646219,0.05497447,133.7,133.69,3.7401]
[1725542646411,0.05497447,133.7,133.68,23.0]
[1725542648220,0.05497447,133.7,133.68,26.7402]
[1725542649327,0.05497447,133.7,133.68,23.0]
[1725542650025,0.05497447,133.7,133.68,26.7402]
[1725542650228,0.05497447,133.7,133.68,23.0]
[1725542650630,0.05497447,133.7,133.69,3.7401]
[1725542651125,0.05497447,133.7,133.67,3.78452344]
[1725542651126,3.79487447,133.7,133.67,7.52512344]
[1725542652133,0.05497447,133.7,133.67,3.78452344]
[1725542652332,0.05497447,133.7,133.67,0.05332645]
[1725542652630,3.7403,133.69,133.67,0.05332645]
[1725542653927,3.7404,133.68,133.67,0.05332645]
[1725542656427,0.05497447,133.7,133.67,0.05332645]
[1725542656831,3.7404,133.68,133.67,0.05332645]
[1725542657542,3.7413,133.65,133.62,26.7419]
[1725542658029,3.7413,133.65,133.62,3.7419]
[1725542658430,3.79077126,133.65,133.62,3.79343815]
[1725542659631,0.04947126,133.65,133.62,0.05153815]
[1725542660133,3.7418,133.63,133.62,0.05153815]
[1725542662633,3.7428,133.6,133.57,26.82703107]
[1725542663026,3.7428,133.6,133.57,30.57053107]
[1725542663229,3.7425,133.61,133.57,30.57053107]
[1725542663426,3.7425,133.61,133.57,26.82703107]
[1725542663636,0.05269324,133.6,133.58,0.04816946]
[1725542664542,0.05269324,133.6,133.58,3.79136946]
[1725542665430,0.05269324,133.6,133.59,26.7429]
[1725542671848,0.05269324,133.6,133.59,23.0]
[1725542673153,0.05269324,133.6,133.59,26.7429]
[1725542674844,0.05269324,133.6,133.59,22.74952566]
[1725542678156,0.05269324,133.6,133.59,12.9429]
[1725542680758,0.05269324,133.6,133.58,3.79116946]
[1725542680957,0.05269324,133.6,133.58,0.04816946]
[1725542681457,3.7429,133.59,133.58,0.04816946]
[1725542683360,3.7429,133.59,133.58,9.24816946]
[1725542684056,3.7429,133.59,133.58,0.04816946]
[1725542684254,3.7429,133.59,133.58,9.24816946]
[1725542684955,3.7429,133.59,133.58,0.04816946]
[1725542685765,3.7438,133.56,133.55,9.2]
[1725542686149,1.3206,133.6,133.55,9.2]
[1725542686359,10.5206,133.6,133.55,9.2]
[1725542686758,0.05428644,133.59,133.56,0.05079523]
[1725542687361,3.7432,133.58,133.56,0.05079523]
[1725542687664,3.7432,133.58,133.56,9.25079523]
[1725542688266,3.79728644,133.59,133.57,9.2]
[1725542689366,3.7433,133.58,133.56,9.25079523]
[1725542690564,3.7433,133.58,133.56,0.05079523]
[1725542693164,3.7433,133.58,133.56,9.25079523]
[1725542694470,3.7435,133.57,133.56,0.05079523]
[1725542700468,3.7435,133.57,133.5,9.2]
[1725542700469,9.2,133.57,133.5,9.2]
[1725542700674,3.82444052,133.56,133.53,9.2]
[1725542700972,10.5206,133.6,133.53,12.9445]
[1725542701374,0.04738591,133.58,133.55,0.05644048]
[1725542702372,0.04738591,133.58,133.57,12.9435]
[1725542703178,0.04738591,133.58,133.57,9.2]
[1725542709773,0.04738591,133.58,133.55,9.25644048]
[1725542710276,3.7437,133.57,133.55,9.25644048]
[1725542710479,0.04738591,133.58,133.55,9.25644048]
[1725542711072,0.04738591,133.58,133.55,0.05644048]
[1725542711073,9.24738591,133.58,133.55,0.05644048]
[1725542711476,3.7438,133.56,133.55,0.05644048]
[1725542711669,9.2,133.56,133.5,9.2]
[1725542711875,2.7313,133.55,133.5,9.2]
[1725542712079,3.72153748,133.54,133.5,9.2]
[1725542712473,3.72153748,133.54,133.49,3.7457]
[1725542712474,9.2,133.54,133.48,3.77359481]
[1725542712679,9.2,133.54,133.48,9.2]
[1725542712875,0.05338315,133.52,133.51,9.2]
[1725542713179,0.05190445,133.53,133.51,9.2]
[1725542714973,0.05190445,133.53,133.5,3.87814086]
[1725542715279,3.85950776,133.53,133.5,0.05024164]
[1725542715481,0.05190445,133.53,133.5,0.05024164]
[1725542715682,3.7452,133.51,133.5,0.05024164]
[1725542717282,3.745,133.52,133.5,0.05024164]
[1725542717875,3.79660445,133.53,133.5,3.79564164]
[1725542718076,0.05190445,133.53,133.5,0.05024164]
[1725542718581,3.7452,133.51,133.5,0.05024164]
[1725542719481,3.745,133.52,133.5,0.05024164]
[1725542719681,0.05190445,133.53,133.51,9.2]
[1725542720181,0.05190445,133.53,133.52,12.9449]
[1725542720784,3.7436,133.57,133.54,3.7442]
[1725542720984,3.73248261,133.6,133.56,9.2]
[1725542721181,10.6033,133.62,133.56,9.2]
[1725542721182,3.7431,133.59,133.56,9.2]
[1725542721582,10.6033,133.62,133.56,9.2]
[1725542721983,0.05530375,133.6,133.58,0.05016146]
[1725542723384,3.7429,133.59,133.58,0.05016146]
[1725542724085,7.47258159,133.59,133.58,0.05016146]
[1725542724288,3.7429,133.59,133.58,0.05016146]
[1725542725492,23.01,133.59,133.51,23.01]
[1725542726090,23.01,133.59,133.52,3.7449]
[1725542726492,3.744,133.56,133.54,0.0531075]
[1725542726791,0.04740377,133.57,133.54,0.0531075]
[1725542727196,3.7441,133.55,133.54,0.0531075]
[1725542731501,3.7439,133.56,133.54,0.0531075]
[1725542731896,0.04740377,133.57,133.54,0.0531075]
[1725542732294,3.7438,133.56,133.54,0.0531075]
[1725542732501,0.04740377,133.57,133.54,0.0531075]
[1725542733001,3.7441,133.55,133.54,0.0531075]
[1725542738004,0.04740377,133.57,133.54,0.0531075]
[1725542738506,3.7441,133.55,133.54,0.0531075]
[1725542743307,3.7439,133.56,133.54,0.0531075]
[1725542743513,0.04740377,133.57,133.54,0.0531075]
[1725542744106,3.7441,133.55,133.54,0.0531075]
[1725542745002,0.04740377,133.57,133.54,0.0531075]
[1725542746007,3.79110377,133.57,133.54,0.0531075]
[1725542746209,0.04740377,133.57,133.54,0.0531075]
[1725542747115,3.7441,133.55,133.54,0.0531075]
[1725542751420,3.7438,133.56,133.54,0.0531075]
[1725542754623,3.7441,133.55,133.54,0.0531075]
[1725542757223,3.7439,133.56,133.54,0.0531075]
[1725542757421,0.04740377,133.57,133.55,23.01]
[1725542757621,0.04740377,133.57,133.56,3.69728069]
[1725542758017,0.04740377,133.57,133.56,12.89728069]
[1725542758318,0.04740377,133.57,133.56,9.2]
[1725542759924,0.04740377,133.57,133.55,7.41608518]
[1725542760320,3.79090377,133.57,133.55,7.41608518]
[1725542760520,0.04740377,133.57,133.55,3.67218518]
[1725542760718,0.04740377,133.57,133.54,0.0531075]
[1725542760926,3.7439,133.56,133.54,0.0531075]
[1725542763317,0.04740377,133.57,133.54,0.0531075]
[1725542763518,0.04740377,133.57,133.54,23.0631075]
[1725542764420,0.04740377,133.57,133.55,3.7439]
[1725542764625,0.04740377,133.57,133.54,23.0631075]
[1725542764823,0.04740377,133.57,133.55,3.7439]
[1725542766827,3.79090377,133.57,133.54,26.8072075]
[1725542767823,3.79090377,133.57,133.55,3.744]
[1725542770426,3.7439,133.56,133.54,0.0531075]
[1725542771327,3.79110377,133.57,133.54,0.0531075]
[1725542771531,0.04740377,133.57,133.54,23.0631075]
[1725542771732,0.04740377,133.57,133.55,3.7439]
[1725542773332,3.79100377,133.57,133.55,3.7439]
[1725542773637,0.04740377,133.57,133.54,26.8073075]
[1725542774131,3.79100377,133.57,133.54,26.8073075]
[1725542775536,0.04740377,133.57,133.55,3.7439]
[1725542775932,0.04740377,133.57,133.55,23.01]
[1725542776129,0.04740377,133.57,133.56,3.7438]
[1725542776336,0.04740377,133.57,133.56,7.57085415]
[1725542779834,0.04740377,133.57,133.55,28.0722]
[1725542780034,0.04740377,133.57,133.55,3.744]
[1725542780533,0.04740377,133.57,133.55,7.50392212]
[1725542781134,0.04740377,133.57,133.54,23.0631075]
[1725542781333,3.744,133.56,133.54,23.0631075]
[1725542781532,3.744,133.56,133.54,26.8074075]
[1725542781727,3.744,133.56,133.54,30.64034145]
[1725542781933,3.744,133.56,133.54,16.84034145]
[1725542783834,3.79100377,133.57,133.54,16.84034145]
[1725542789845,3.7438,133.56,133.54,3.7974075]
[1725542790046,0.04740377,133.57,133.54,0.0531075]
[1725542790238,3.7441,133.55,133.54,0.0531075]
[1725542791537,3.7438,133.56,133.54,0.0531075]
[1725542791846,0.04740377,133.57,133.55,9.21]
[1725542792147,3.79100377,133.57,133.55,9.21]
[1725542794645,3.79100377,133.57,133.55,12.954]
[1725542794846,0.04740377,133.57,133.55,12.954]
[1725542795746,3.79100377,133.57,133.55,12.954]
[1725542796144,0.04740377,133.57,133.55,12.954]
[1725542796542,0.04740377,133.57,133.54,0.0531075]
[1725542798243,3.79100377,133.57,133.55,9.21]
[1725542800347,3.79100377,133.57,133.55,12.954]
[1725542800544,0.04740377,133.57,133.55,12.954]
[1725542800736,0.04740377,133.57,133.56,9.21]
[1725542800942,0.04740377,133.57,133.56,16.66709819]
[1725542803244,0.04740377,133.57,133.55,3.744]
[1725542803447,0.04740377,133.57,133.54,9.2631075]
[1725542803846,3.79100377,133.57,133.54,13.0074075]
[1725542804150,3.79100377,133.57,133.54,16.84222257]
[1725542804851,0.04740377,133.57,133.56,9.21]
[1725542805445,0.04740377,133.57,133.56,12.9538]
[1725542806041,0.04740377,133.57,133.56,26.7538]
[1725542806848,3.68558421,133.63,133.58,3.7431]
[1725542807055,3.68558421,133.63,133.56,23.01]
[1725542807748,3.68558421,133.63,133.58,0.05437186]
[1725542807952,0.04738302,133.61,133.58,0.05437186]
[1725542808647,3.7428,133.6,133.58,0.05437186]
[1725542810147,3.78988302,133.61,133.58,3.79757186]
[1725542810550,0.04738302,133.61,133.58,3.79757186]
[1725542812451,3.7427,133.6,133.58,3.79757186]
[1725542812653,3.7427,133.6,133.58,0.05437186]
[1725542813154,3.7429,133.59,133.58,0.05437186]
[1725542821958,3.7427,133.6,133.58,0.05437186]
[1725542822260,0.04738302,133.61,133.58,3.79757186]
[1725542822658,3.78988302,133.61,133.58,3.79757186]
[1725542824166,0.04738302,133.61,133.58,0.05437186]
[1725542824870,3.7429,133.59,133.58,0.05437186]
[1725542828067,9.21,133.59,133.5,1.3505]
[1725542828379,9.21,133.57,133.51,9.21]
[1725542828573,3.7443,133.55,133.51,12.955]
[1725542828874,3.7443,133.55,133.52,9.21]
[1725542829079,3.79954726,133.55,133.52,9.26568548]
[1725542829372,3.79954726,133.55,133.54,9.21]
[1725542829668,0.05524726,133.55,133.54,9.21]
[1725542830269,0.05524726,133.55,133.54,12.9543]
[1725542830975,11.9583,133.63,133.55,3.7438]
[1725542831164,0.27530973,133.62,133.56,9.21]
[1725542831369,2.7483,133.63,133.58,9.21]
[1725542831575,3.7427,133.6,133.58,9.21]
[1725542831966,3.79016051,133.6,133.59,9.21]
[1725542832575,0.04746051,133.6,133.59,9.21]
[1725542833681,0.04746051,133.6,133.59,12.9529]